[Event "7th Paul Keres Memorial Festival 2026 Rapid"]
[Site "ESTONIA Resort Hotel & Spa conference center, EE"]
[Date "2026.08.02"]
[Round "8"]
[White "Shirov, Alexei"]
[Black "Kubicka, Anna"]
[Result "1-0"]
[Board "6"]
[TimeControl "12+3"]
[WhiteFideId "2209390"]
[BlackFideId "1152254"]
[WhiteElo "2616"]
[BlackElo "2105"]
[WhiteTitle "GM"]
[BlackTitle "WIM"]
[WhiteClock "0:00:18"]
[BlackClock "0:00:11"]
[Variant "Standard"]
[EndDate "2026.08.02"]
[EndTime "12:26:05"]

1. e4 {[%clk 0:12:04]}  e5 {[%clk 0:12:02]} 2. Nf3 {[%clk 0:12:05]}  Nc6 {[%clk 0:12:04]} 3. Bc4 {[%clk 0:12:01]}  Nf6 {[%clk 0:12:04]}
4. d3 {[%clk 0:12:02]}  h6 {[%clk 0:12:03]} 5. c3 {[%clk 0:11:32]}  d6 {[%clk 0:11:29]} 6. b4 {[%clk 0:11:15]}  a6 {[%clk 0:11:19]}
7. a4 {[%clk 0:11:02]}  Be7 {[%clk 0:10:46]} 8. Nbd2 {[%clk 0:10:26]}  O-O {[%clk 0:10:03]} 9. O-O {[%clk 0:10:03]}  Be6 {[%clk 0:09:51]}
10. Bxe6 {[%clk 0:09:48]}  fxe6 {[%clk 0:09:52]} 11. Nc4 {[%clk 0:09:49]}  Qe8 {[%clk 0:09:23]} 12. Bd2 {[%clk 0:09:19]}  Nh5 {[%clk 0:09:04]}
13. b5 {[%clk 0:09:02]}  Nd8 {[%clk 0:08:29]} 14. b6 {[%clk 0:08:52]}  Rc8 {[%clk 0:08:00]} 15. d4 {[%clk 0:08:33]}  exd4 {[%clk 0:07:54]}
16. cxd4 {[%clk 0:08:23]}  Qg6 {[%clk 0:07:04]} 17. Re1 {[%clk 0:08:22]}  cxb6 {[%clk 0:05:48]} 18. Nxb6 {[%clk 0:08:15]}  Rc6 {[%clk 0:05:49]}
19. Nd7 {[%clk 0:06:22]}  Nf4 {[%clk 0:05:43]} 20. g3 {[%clk 0:06:11]}  Rf7 {[%clk 0:05:04]} 21. d5 {[%clk 0:04:26]}  Rc7 {[%clk 0:04:19]}
22. Nb6 {[%clk 0:04:05]}  e5 {[%clk 0:01:31]} 23. Ra3 {[%clk 0:03:52]}  Nh3+ {[%clk 0:00:56]} 24. Kg2 {[%clk 0:03:51]}  Nf4+ {[%clk 0:00:42]}
25. Bxf4 {[%clk 0:02:16]}  Rxf4 {[%clk 0:00:42]} 26. Qd3 {[%clk 0:02:15]}  Rf8 {[%clk 0:00:32]} 27. Rc3 {[%clk 0:02:09]}  Rxc3 {[%clk 0:00:26]}
28. Qxc3 {[%clk 0:02:10]}  Qh5 {[%clk 0:00:15]} 29. Re3 {[%clk 0:02:01]}  Bg5 {[%clk 0:00:14]} 30. Nxg5 {[%clk 0:01:13]}  Qxg5 {[%clk 0:00:11]}
31. Qc7 {[%clk 0:01:05]}  Qg6 {[%clk 0:00:09]} 32. h4 {[%clk 0:00:31]}  Qf7 {[%clk 0:00:06]} 33. Qxf7+ {[%clk 0:00:30]}  Nxf7 {[%clk 0:00:06]}
34. Rc3 {[%clk 0:00:31]}  g5 {[%clk 0:00:06]} 35. h5 {[%clk 0:00:26]}  g4 {[%clk 0:00:08]} 36. Nd7 {[%clk 0:00:27]}  Rd8 {[%clk 0:00:05]}
37. Rc7 {[%clk 0:00:21]}  Kg7 {[%clk 0:00:04]} 38. Rxb7 {[%clk 0:00:21]}  Rc8 {[%clk 0:00:06]} 39. Nb8 {[%clk 0:00:07]}  Rc4 {[%clk 0:00:06]}
40. a5 {[%clk 0:00:08]}  Rxe4 {[%clk 0:00:07]} 41. Nxa6 {[%clk 0:00:09]}  Ra4 {[%clk 0:00:09]} 42. Rb5 {[%clk 0:00:07]}  Ra2 {[%clk 0:00:09]}
43. Nc7 {[%clk 0:00:08]}  Ng5 {[%clk 0:00:10]} 44. Ne6+ {[%clk 0:00:06]}  Kf6 {[%clk 0:00:10]} 45. Nxg5 {[%clk 0:00:05]}  Kxg5 {[%clk 0:00:12]}
46. Rb6 {[%clk 0:00:07]}  e4 {[%clk 0:00:12]} 47. Kf1 {[%clk 0:00:09]}  Rxa5 {[%clk 0:00:11]} 48. Rxd6 {[%clk 0:00:10]}  Ra2 {[%clk 0:00:12]}
49. Re6 {[%clk 0:00:11]}  Rd2 {[%clk 0:00:12]} 50. d6 {[%clk 0:00:11]}  Kxh5 {[%clk 0:00:09]} 51. Ke1 {[%clk 0:00:12]}  Rd4 {[%clk 0:00:11]}
52. Ke2 {[%clk 0:00:13]}  Kg5 {[%clk 0:00:11]} 53. Ke3 {[%clk 0:00:15]}  Rd1 {[%clk 0:00:12]} 54. Kxe4 {[%clk 0:00:16]}  Rd2 {[%clk 0:00:05]}
55. Re5+ {[%clk 0:00:15]}  Kf6 {[%clk 0:00:05]} 56. Rd5 {[%clk 0:00:15]}  Re2+ {[%clk 0:00:05]} 57. Kd3 {[%clk 0:00:14]}  Re8 {[%clk 0:00:06]}
58. Kd4 {[%clk 0:00:14]}  Rd8 {[%clk 0:00:07]} 59. Kc5 {[%clk 0:00:14]}  Ke6 {[%clk 0:00:09]} 60. Rh5 {[%clk 0:00:15]}  Rc8+ {[%clk 0:00:11]}
61. Kd4 {[%clk 0:00:17]}  Rh8 {[%clk 0:00:08]} 62. Rd5 {[%clk 0:00:16]}  Kd7 {[%clk 0:00:09]} 63. Ke4 {[%clk 0:00:15]}  Rf8 {[%clk 0:00:11]}
64. Rf5 {[%clk 0:00:15]}  Re8+ {[%clk 0:00:12]} 65. Kf4 {[%clk 0:00:16]}  Kxd6 {[%clk 0:00:13]} 66. Kxg4 {[%clk 0:00:11]}  Re2 {[%clk 0:00:14]}
67. Kh5 {[%clk 0:00:12]}  Ke6 {[%clk 0:00:13]} 68. g4 {[%clk 0:00:12]}  Re4 {[%clk 0:00:08]} 69. f3 {[%clk 0:00:13]}  Re1 {[%clk 0:00:08]}
70. Kxh6 {[%clk 0:00:14]}  Rg1 {[%clk 0:00:06]} 71. Kg6 {[%clk 0:00:15]}  Rg3 {[%clk 0:00:07]} 72. g5 {[%clk 0:00:15]}  Rg1 {[%clk 0:00:07]}
73. f4 {[%clk 0:00:15]}  Ra1 {[%clk 0:00:09]} 74. Rf6+ {[%clk 0:00:17]}  Ke7 {[%clk 0:00:11]} 75. Kg7 {[%clk 0:00:18]} 1-0

[Event "7th Paul Keres Memorial Festival 2026 Rapid"]
[Site "ESTONIA Resort Hotel & Spa conference center, EE"]
[Date "2026.08.02"]
[Round "8"]
[White "Keinanen, Toivo"]
[Black "Krustkalns, Kristaps"]
[Result "1-0"]
[Board "7"]
[TimeControl "12+3"]
[WhiteFideId "509825"]
[BlackFideId "11602686"]
[WhiteElo "2585"]
[BlackElo "1967"]
[WhiteTitle "IM"]
[BlackTitle "FM"]
[WhiteClock "0:07:00"]
[BlackClock "0:04:34"]
[Variant "Standard"]
[EndDate "2026.08.02"]
[EndTime "12:09:58"]

1. d4 {[%clk 0:12:04]}  Nf6 {[%clk 0:12:02]} 2. Nf3 {[%clk 0:12:05]}  b6 {[%clk 0:12:00]} 3. e3 {[%clk 0:12:04]}  Bb7 {[%clk 0:12:02]}
4. Bd3 {[%clk 0:12:04]}  c5 {[%clk 0:12:02]} 5. c4 {[%clk 0:12:04]}  e6 {[%clk 0:12:05]} 6. O-O {[%clk 0:12:10]}  d5 {[%clk 0:11:46]}
7. cxd5 {[%clk 0:11:58]}  exd5 {[%clk 0:11:11]} 8. b3 {[%clk 0:11:18]}  Bd6 {[%clk 0:10:57]} 9. Nc3 {[%clk 0:11:03]}  O-O {[%clk 0:10:35]}
10. Bb2 {[%clk 0:10:43]}  Nc6 {[%clk 0:10:24]} 11. dxc5 {[%clk 0:10:12]}  bxc5 {[%clk 0:10:15]} 12. Nb5 {[%clk 0:10:03]}  Be7 {[%clk 0:09:57]}
13. Rc1 {[%clk 0:10:00]}  a6 {[%clk 0:09:46]} 14. Nc3 {[%clk 0:10:01]}  Rc8 {[%clk 0:09:36]} 15. Na4 {[%clk 0:09:54]}  Nb4 {[%clk 0:08:11]}
16. Bf5 {[%clk 0:09:54]}  Rc7 {[%clk 0:05:49]} 17. a3 {[%clk 0:09:46]}  Nc6 {[%clk 0:05:20]} 18. Nxc5 {[%clk 0:09:04]}  Ne5 {[%clk 0:04:55]}
19. Nxe5 {[%clk 0:07:31]}  Rxc5 {[%clk 0:04:55]} 20. Qd4 {[%clk 0:07:21]}  Qc7 {[%clk 0:04:33]} 21. Nd7 {[%clk 0:06:57]}  Rxc1 {[%clk 0:04:33]}
22. Rxc1 {[%clk 0:06:59]}  Qd6 {[%clk 0:04:34]} 23. Nxf8 {[%clk 0:07:00]} 1-0

[Event "7th Paul Keres Memorial Festival 2026 Rapid"]
[Site "ESTONIA Resort Hotel & Spa conference center, EE"]
[Date "2026.08.02"]
[Round "8"]
[White "Jakubowski, Krzysztof"]
[Black "Sokolovs, Nikita"]
[Result "1-0"]
[Board "8"]
[TimeControl "12+3"]
[WhiteFideId "1112848"]
[BlackFideId "34212523"]
[WhiteElo "2365"]
[BlackElo "1962"]
[WhiteTitle "GM"]
[WhiteClock "0:12:03"]
[BlackClock "0:12:03"]
[Variant "Standard"]
[EndDate "2026.08.02"]
[EndTime "12:21:05"]

1. e4 {[%clk 0:12:04]}  e5 {[%clk 0:12:05]} 2. Nf3 {[%clk 0:12:06]}  f5 {[%clk 0:12:07]} 3. Nxe5 {[%clk 0:10:56]}  fxe4 {[%clk 0:12:08]}
4. d4 {[%clk 0:09:21]}  d5 {[%clk 0:12:10]} 5. Bf4 {[%clk 0:09:06]}  Nf6 {[%clk 0:12:08]} 6. Be2 {[%clk 0:09:00]}  Bd6 {[%clk 0:12:02]}
7. c4 {[%clk 0:08:37]}  c6 {[%clk 0:11:52]} 8. Nc3 {[%clk 0:08:30]}  O-O {[%clk 0:11:43]} 9. O-O {[%clk 0:08:18]}  Be6 {[%clk 0:09:37]}
10. cxd5 {[%clk 0:07:42]}  Nxd5 {[%clk 0:10:00]} 11. Bg3 {[%clk 0:07:42]}  Bxe5 {[%clk 0:09:56]} 12. Bxe5 {[%clk 0:07:32]}  Nxc3 {[%clk 0:09:57]}
13. bxc3 {[%clk 0:07:33]}  Nd7 {[%clk 0:09:57]} 14. Bd6 {[%clk 0:07:30]}  Rf5 {[%clk 0:09:58]} 15. c4 {[%clk 0:07:19]}  Nf6 {[%clk 0:09:33]}
16. Bg3 {[%clk 0:06:55]}  Qd7 {[%clk 0:09:18]} 17. a4 {[%clk 0:06:39]}  Rd8 {[%clk 0:08:53]} 18. Qc2 {[%clk 0:05:04]}  Qxd4 {[%clk 0:08:05]}
19. Rad1 {[%clk 0:05:00]}  Qb6 {[%clk 0:08:02]} 20. Rb1 {[%clk 0:05:01]}  Qa5 {[%clk 0:07:47]} 21. Rfd1 {[%clk 0:04:52]}  Bc8 {[%clk 0:05:41]}
22. h3 {[%clk 0:04:28]}  Re8 {[%clk 0:03:48]} 23. Rd6 {[%clk 0:03:59]}  Nh5 {[%clk 0:03:15]} 24. Bh2 {[%clk 0:03:36]}  Nf6 {[%clk 0:02:46]}
25. Rbd1 {[%clk 0:02:53]}  Qc5 {[%clk 0:02:28]} 26. R6d4 {[%clk 0:02:51]}  e3 {[%clk 0:02:15]} 27. f3 {[%clk 0:02:49]}  Nd7 {[%clk 0:01:41]}
28. Rxd7 {[%clk 0:02:06]}  Bxd7 {[%clk 0:01:43]} 29. Rxd7 {[%clk 0:02:07]}  Qb4 {[%clk 0:00:19]} 30. Qxf5 {[%clk 0:01:25]}  Qe1+ {[%clk 0:00:21]}
31. Bf1 {[%clk 0:01:27]}  Qf2+ {[%clk 0:00:23]} 32. Kh1 {[%clk 0:01:29]}  Qxf1+ {[%clk 0:00:25]} 33. Bg1 {[%clk 0:01:31]}  Kh8 {[%clk 0:00:06]}
34. Qe5 {[%clk 0:01:17]}  Rg8 {[%clk 0:00:00]} 35. Qxe3 {[%clk 0:12:03]}  Qxc4 {[%clk 0:12:03]} 1-0

[Event "7th Paul Keres Memorial Festival 2026 Rapid"]
[Site "ESTONIA Resort Hotel & Spa conference center, EE"]
[Date "2026.08.02"]
[Round "8"]
[White "Raag, Ardi"]
[Black "Platonovs, Nikolajs"]
[Result "1-0"]
[Board "9"]
[TimeControl "12+3"]
[WhiteFideId "4509269"]
[BlackFideId "11622598"]
[WhiteElo "2023"]
[BlackElo "2188"]
[BlackTitle "CM"]
[WhiteClock "0:01:15"]
[BlackClock "0:01:35"]
[Variant "Standard"]
[EndDate "2026.08.02"]
[EndTime "12:19:43"]

1. e4 {[%clk 0:12:05]}  c5 {[%clk 0:12:05]} 2. c3 {[%clk 0:12:07]}  Nf6 {[%clk 0:12:07]} 3. e5 {[%clk 0:12:09]}  Nd5 {[%clk 0:12:10]}
4. Nf3 {[%clk 0:12:11]}  d6 {[%clk 0:12:12]} 5. d4 {[%clk 0:12:13]}  cxd4 {[%clk 0:12:08]} 6. cxd4 {[%clk 0:12:15]}  Nc6 {[%clk 0:12:09]}
7. Bc4 {[%clk 0:12:16]}  Nb6 {[%clk 0:12:11]} 8. Bb5 {[%clk 0:12:18]}  dxe5 {[%clk 0:11:53]} 9. Nxe5 {[%clk 0:12:19]}  Bd7 {[%clk 0:11:51]}
10. Nxd7 {[%clk 0:12:19]}  Qxd7 {[%clk 0:11:53]} 11. Nc3 {[%clk 0:12:21]}  e6 {[%clk 0:11:51]} 12. O-O {[%clk 0:12:21]}  a6 {[%clk 0:11:53]}
13. Bxc6 {[%clk 0:12:15]}  Qxc6 {[%clk 0:11:44]} 14. Be3 {[%clk 0:11:54]}  Bd6 {[%clk 0:11:05]} 15. Qg4 {[%clk 0:11:45]}  h5 {[%clk 0:09:19]}
16. Qxg7 {[%clk 0:10:00]}  O-O-O {[%clk 0:09:18]} 17. Qxf7 {[%clk 0:09:35]}  Kb8 {[%clk 0:08:22]} 18. d5 {[%clk 0:06:03]}  Nxd5 {[%clk 0:08:17]}
19. Nxd5 {[%clk 0:06:03]}  Qxd5 {[%clk 0:08:13]} 20. Rad1 {[%clk 0:04:41]}  Qc6 {[%clk 0:06:37]} 21. Qf3 {[%clk 0:02:34]}  Qxf3 {[%clk 0:06:18]}
22. gxf3 {[%clk 0:02:36]}  Rdg8+ {[%clk 0:05:53]} 23. Kh1 {[%clk 0:02:36]}  Bc7 {[%clk 0:05:53]} 24. Rg1 {[%clk 0:02:09]}  Rxg1+ {[%clk 0:05:31]}
25. Rxg1 {[%clk 0:02:06]}  Rd8 {[%clk 0:05:05]} 26. Rg6 {[%clk 0:01:59]}  Rd1+ {[%clk 0:03:52]} 27. Kg2 {[%clk 0:02:01]}  b6 {[%clk 0:03:53]}
28. Rxe6 {[%clk 0:01:48]}  Kb7 {[%clk 0:03:40]} 29. f4 {[%clk 0:01:44]}  Rb1 {[%clk 0:03:11]} 30. f5 {[%clk 0:01:38]}  Rxb2 {[%clk 0:03:13]}
31. f6 {[%clk 0:01:40]}  Rb5 {[%clk 0:03:15]} 32. Kf3 {[%clk 0:01:30]}  Kc8 {[%clk 0:02:14]} 33. Ke4 {[%clk 0:01:31]}  Rb4+ {[%clk 0:01:56]}
34. Bd4 {[%clk 0:01:14]}  Kd7 {[%clk 0:01:44]} 35. Re7+ {[%clk 0:01:16]}  Kd8 {[%clk 0:01:35]} 36. Rxc7 {[%clk 0:01:15]} 1-0

[Event "7th Paul Keres Memorial Festival 2026 Rapid"]
[Site "ESTONIA Resort Hotel & Spa conference center, EE"]
[Date "2026.08.02"]
[Round "9"]
[White "Harikrishnan.A.Ra"]
[Black "Kazakouski, Valery"]
[Result "0-1"]
[Board "1"]
[TimeControl "12+3"]
[WhiteFideId "5081483"]
[BlackFideId "13507443"]
[WhiteElo "2404"]
[BlackElo "2528"]
[WhiteTitle "GM"]
[BlackTitle "GM"]
[WhiteClock "0:00:06"]
[BlackClock "0:00:31"]
[Variant "Standard"]
[EndDate "2026.08.02"]
[EndTime "13:05:06"]

1. d4 {[%clk 0:12:05]}  Nf6 {[%clk 0:12:05]} 2. Bf4 {[%clk 0:12:06]}  e6 {[%clk 0:11:54]} 3. e3 {[%clk 0:12:07]}  c5 {[%clk 0:11:56]}
4. c3 {[%clk 0:12:08]}  Be7 {[%clk 0:11:57]} 5. Nd2 {[%clk 0:11:52]}  cxd4 {[%clk 0:11:50]} 6. exd4 {[%clk 0:11:45]}  O-O {[%clk 0:11:51]}
7. Bd3 {[%clk 0:10:57]}  d6 {[%clk 0:11:46]} 8. a4 {[%clk 0:10:37]}  b6 {[%clk 0:11:45]} 9. Ngf3 {[%clk 0:10:22]}  Ba6 {[%clk 0:11:46]}
10. Bxa6 {[%clk 0:10:15]}  Nxa6 {[%clk 0:11:48]} 11. O-O {[%clk 0:10:07]}  Nc7 {[%clk 0:11:48]} 12. Qe2 {[%clk 0:09:59]}  a6 {[%clk 0:11:47]}
13. Bg5 {[%clk 0:09:46]}  h6 {[%clk 0:11:43]} 14. Bh4 {[%clk 0:09:43]}  Qd7 {[%clk 0:11:30]} 15. Ne1 {[%clk 0:09:20]}  b5 {[%clk 0:11:10]}
16. axb5 {[%clk 0:09:19]}  axb5 {[%clk 0:11:11]} 17. Nd3 {[%clk 0:09:19]}  Ncd5 {[%clk 0:11:08]} 18. Rfc1 {[%clk 0:08:51]}  Rfc8 {[%clk 0:10:59]}
19. Qd1 {[%clk 0:08:45]}  Qc6 {[%clk 0:10:51]} 20. Qb3 {[%clk 0:08:11]}  Nb6 {[%clk 0:09:43]} 21. Nb4 {[%clk 0:07:31]}  Qb7 {[%clk 0:09:43]}
22. Nc2 {[%clk 0:07:05]}  Nfd5 {[%clk 0:08:50]} 23. Bg3 {[%clk 0:05:25]}  Bg5 {[%clk 0:08:11]} 24. Rxa8 {[%clk 0:04:03]}  Rxa8 {[%clk 0:08:12]}
25. Rd1 {[%clk 0:04:05]}  Bxd2 {[%clk 0:08:13]} 26. Rxd2 {[%clk 0:04:07]}  Nc4 {[%clk 0:08:15]} 27. Rd1 {[%clk 0:04:08]}  Qa6 {[%clk 0:07:16]}
28. Ne1 {[%clk 0:02:43]}  Qa4 {[%clk 0:07:00]} 29. Qxa4 {[%clk 0:02:42]}  bxa4 {[%clk 0:06:59]} 30. Nd3 {[%clk 0:02:44]}  Rb8 {[%clk 0:06:59]}
31. Ra1 {[%clk 0:02:42]}  Nxb2 {[%clk 0:06:39]} 32. Bxd6 {[%clk 0:02:42]}  Rb3 {[%clk 0:06:01]} 33. Nxb2 {[%clk 0:01:58]}  Rxb2 {[%clk 0:06:02]}
34. c4 {[%clk 0:01:29]}  Nb6 {[%clk 0:04:39]} 35. Ba3 {[%clk 0:00:52]}  Rd2 {[%clk 0:04:02]} 36. Bb4 {[%clk 0:00:33]}  Rd3 {[%clk 0:02:28]}
37. Kf1 {[%clk 0:00:09]}  Nxc4 {[%clk 0:01:37]} 38. Rxa4 {[%clk 0:00:11]}  Rxd4 {[%clk 0:01:38]} 39. Ra8+ {[%clk 0:00:13]}  Kh7 {[%clk 0:01:40]}
40. Bc3 {[%clk 0:00:08]}  Rd3 {[%clk 0:01:40]} 41. Bb4 {[%clk 0:00:09]}  Rb3 {[%clk 0:01:39]} 42. Bc5 {[%clk 0:00:09]}  Rb5 {[%clk 0:01:02]}
43. Bd4 {[%clk 0:00:09]}  e5 {[%clk 0:01:02]} 44. Ra4 {[%clk 0:00:05]}  Nd2+ {[%clk 0:00:32]} 45. Ke2 {[%clk 0:00:07]}  Ne4 {[%clk 0:00:28]}
46. Ba1 {[%clk 0:00:09]}  Nc5 {[%clk 0:00:27]} 47. Ra7 {[%clk 0:00:08]}  f6 {[%clk 0:00:16]} 48. h4 {[%clk 0:00:10]}  h5 {[%clk 0:00:16]}
49. f3 {[%clk 0:00:08]}  Ne6 {[%clk 0:00:17]} 50. Ra2 {[%clk 0:00:08]}  Nf4+ {[%clk 0:00:17]} 51. Kf2 {[%clk 0:00:10]}  Kg6 {[%clk 0:00:17]}
52. Bc3 {[%clk 0:00:12]}  Rc5 {[%clk 0:00:19]} 53. Bd2 {[%clk 0:00:13]}  Ne6 {[%clk 0:00:20]} 54. Be3 {[%clk 0:00:16]}  Rc4 {[%clk 0:00:22]}
55. Rb2 {[%clk 0:00:17]}  Rxh4 {[%clk 0:00:23]} 56. Rb6 {[%clk 0:00:12]}  Nd8 {[%clk 0:00:17]} 57. Bd2 {[%clk 0:00:07]}  Rc4 {[%clk 0:00:18]}
58. Ke2 {[%clk 0:00:08]}  Nf7 {[%clk 0:00:14]} 59. Kd3 {[%clk 0:00:10]}  Rd4+ {[%clk 0:00:16]} 60. Ke3 {[%clk 0:00:12]}  Nh6 {[%clk 0:00:18]}
61. Ke2 {[%clk 0:00:12]}  Nf5 {[%clk 0:00:20]} 62. Bb4 {[%clk 0:00:13]}  Rd7 {[%clk 0:00:20]} 63. Be1 {[%clk 0:00:13]}  Nd4+ {[%clk 0:00:22]}
64. Kf2 {[%clk 0:00:14]}  Rc7 {[%clk 0:00:24]} 65. Bd2 {[%clk 0:00:10]}  Rc2 {[%clk 0:00:26]} 66. Ke1 {[%clk 0:00:13]}  h4 {[%clk 0:00:25]}
67. Kd1 {[%clk 0:00:11]}  Ra2 {[%clk 0:00:27]} 68. Rb1 {[%clk 0:00:06]}  h3 {[%clk 0:00:27]} 69. gxh3 {[%clk 0:00:09]}  Nxf3 {[%clk 0:00:30]}
70. Be3 {[%clk 0:00:11]}  Rh2 {[%clk 0:00:31]} 71. Rb7 {[%clk 0:00:12]}  Rxh3 {[%clk 0:00:32]} 72. Ke2 {[%clk 0:00:14]}  Nd4+ {[%clk 0:00:33]}
73. Kd2 {[%clk 0:00:15]}  Nf5 {[%clk 0:00:35]} 74. Bc5 {[%clk 0:00:17]}  Rh8 {[%clk 0:00:27]} 75. Kd3 {[%clk 0:00:17]}  Rc8 {[%clk 0:00:29]}
76. Bb4 {[%clk 0:00:18]}  Rd8+ {[%clk 0:00:29]} 77. Ke2 {[%clk 0:00:19]}  Nd4+ {[%clk 0:00:27]} 78. Kf2 {[%clk 0:00:19]}  Ne6 {[%clk 0:00:29]}
79. Rb6 {[%clk 0:00:20]}  Kf5 {[%clk 0:00:31]} 80. Bc3 {[%clk 0:00:18]}  g5 {[%clk 0:00:32]} 81. Bb4 {[%clk 0:00:19]}  g4 {[%clk 0:00:34]}
82. Be7 {[%clk 0:00:19]}  Rd3 {[%clk 0:00:34]} 83. Ke2 {[%clk 0:00:20]}  Rf3 {[%clk 0:00:32]} 84. Rb8 {[%clk 0:00:17]}  Nf4+ {[%clk 0:00:33]}
85. Kd2 {[%clk 0:00:17]}  g3 {[%clk 0:00:34]} 86. Rg8 {[%clk 0:00:17]}  Ng6 {[%clk 0:00:34]} 87. Bc5 {[%clk 0:00:18]}  e4 {[%clk 0:00:31]}
88. Ra8 {[%clk 0:00:14]}  Rd3+ {[%clk 0:00:28]} 89. Ke1 {[%clk 0:00:13]}  Nf4 {[%clk 0:00:27]} 90. Ra5 {[%clk 0:00:08]}  Kg4 {[%clk 0:00:28]}
91. Ra4 {[%clk 0:00:10]}  Kf3 {[%clk 0:00:27]} 92. Ra1 {[%clk 0:00:08]}  e3 {[%clk 0:00:28]} 93. Kf1 {[%clk 0:00:05]}  Rd5 {[%clk 0:00:30]}
94. Bb4 {[%clk 0:00:06]}  Rh5 {[%clk 0:00:31]} 0-1

[Event "7th Paul Keres Memorial Festival 2026 Rapid"]
[Site "ESTONIA Resort Hotel & Spa conference center, EE"]
[Date "2026.08.02"]
[Round "9"]
[White "Laurusas, Tomas"]
[Black "Fridman, Daniel"]
[Result "1-0"]
[Board "2"]
[TimeControl "12+3"]
[WhiteFideId "12803731"]
[BlackFideId "11600454"]
[WhiteElo "2462"]
[BlackElo "2555"]
[WhiteTitle "GM"]
[BlackTitle "GM"]
[WhiteClock "0:00:15"]
[BlackClock "0:00:22"]
[Variant "Standard"]
[EndDate "2026.08.02"]
[EndTime "13:00:18"]

1. d4 {[%clk 0:12:05]}  e6 {[%clk 0:12:04]} 2. c4 {[%clk 0:12:07]}  b6 {[%clk 0:12:05]} 3. Nf3 {[%clk 0:11:39]}  Bb7 {[%clk 0:12:06]}
4. a3 {[%clk 0:11:41]}  Nf6 {[%clk 0:11:54]} 5. Nc3 {[%clk 0:11:42]}  d5 {[%clk 0:11:28]} 6. cxd5 {[%clk 0:11:23]}  Nxd5 {[%clk 0:11:26]}
7. Qc2 {[%clk 0:11:24]}  Be7 {[%clk 0:11:02]} 8. e4 {[%clk 0:11:26]}  Nxc3 {[%clk 0:11:03]} 9. bxc3 {[%clk 0:11:27]}  c5 {[%clk 0:11:01]}
10. Bd3 {[%clk 0:10:59]}  Nc6 {[%clk 0:10:43]} 11. Bb2 {[%clk 0:11:19]}  Rc8 {[%clk 0:10:21]} 12. Qe2 {[%clk 0:11:20]}  O-O {[%clk 0:10:06]}
13. O-O {[%clk 0:11:16]}  Re8 {[%clk 0:09:32]} 14. Rad1 {[%clk 0:11:13]}  cxd4 {[%clk 0:09:32]} 15. cxd4 {[%clk 0:11:15]}  Bd6 {[%clk 0:08:35]}
16. h4 {[%clk 0:10:41]}  g6 {[%clk 0:08:13]} 17. h5 {[%clk 0:10:41]}  Qe7 {[%clk 0:07:51]} 18. Ra1 {[%clk 0:10:18]}  Bf4 {[%clk 0:07:43]}
19. Rad1 {[%clk 0:09:45]}  Bd6 {[%clk 0:07:41]} 20. Ra1 {[%clk 0:06:52]}  Bf4 {[%clk 0:07:43]} 21. Rfe1 {[%clk 0:06:47]}  Red8 {[%clk 0:06:58]}
22. Rad1 {[%clk 0:06:45]}  Qf8 {[%clk 0:05:59]} 23. Bb5 {[%clk 0:06:32]}  Na5 {[%clk 0:05:45]} 24. g3 {[%clk 0:06:14]}  Bh6 {[%clk 0:05:47]}
25. hxg6 {[%clk 0:05:55]}  hxg6 {[%clk 0:05:48]} 26. Kg2 {[%clk 0:05:48]}  Rc7 {[%clk 0:05:41]} 27. Rh1 {[%clk 0:05:46]}  Bg7 {[%clk 0:05:29]}
28. Bd3 {[%clk 0:04:44]}  Nc6 {[%clk 0:05:05]} 29. Qe3 {[%clk 0:04:24]}  Qe7 {[%clk 0:04:46]} 30. Rh4 {[%clk 0:04:16]}  Na5 {[%clk 0:04:26]}
31. Rdh1 {[%clk 0:04:12]}  Nc4 {[%clk 0:04:08]} 32. Bxc4 {[%clk 0:04:13]}  Rxc4 {[%clk 0:04:10]} 33. Rh7 {[%clk 0:04:05]}  Qf8 {[%clk 0:03:30]}
34. Qe2 {[%clk 0:02:52]}  Rdc8 {[%clk 0:03:19]} 35. d5 {[%clk 0:02:54]}  f6 {[%clk 0:03:13]} 36. Nd4 {[%clk 0:02:41]}  exd5 {[%clk 0:02:39]}
37. Qg4 {[%clk 0:02:16]}  Qf7 {[%clk 0:02:32]} 38. Qh3 {[%clk 0:01:52]}  Qe7 {[%clk 0:02:18]} 39. Rxg7+ {[%clk 0:00:39]}  Qxg7 {[%clk 0:02:16]}
40. Qe6+ {[%clk 0:00:40]}  Kf8 {[%clk 0:02:16]} 41. Qd6+ {[%clk 0:00:42]}  Kg8 {[%clk 0:01:54]} 42. Qe6+ {[%clk 0:00:34]}  Kf8 {[%clk 0:01:55]}
43. Nf5 {[%clk 0:00:28]}  Re8 {[%clk 0:00:25]} 44. Qd6+ {[%clk 0:00:26]}  Kg8 {[%clk 0:00:21]} 45. Nxg7 {[%clk 0:00:26]}  dxe4 {[%clk 0:00:22]}
46. Nxe8 {[%clk 0:00:15]} 1-0

[Event "7th Paul Keres Memorial Festival 2026 Rapid"]
[Site "ESTONIA Resort Hotel & Spa conference center, EE"]
[Date "2026.08.02"]
[Round "9"]
[White "Lagarde, Maxime"]
[Black "Keinanen, Toivo"]
[Result "0-1"]
[Board "3"]
[TimeControl "12+3"]
[WhiteFideId "662399"]
[BlackFideId "509825"]
[WhiteElo "2599"]
[BlackElo "2585"]
[WhiteTitle "GM"]
[BlackTitle "IM"]
[WhiteClock "0:03:47"]
[BlackClock "0:05:01"]
[Variant "Standard"]
[EndDate "2026.08.02"]
[EndTime "12:50:18"]

1. Nf3 {[%clk 0:12:04]}  d5 {[%clk 0:12:06]} 2. g3 {[%clk 0:12:02]}  b6 {[%clk 0:12:08]} 3. Bg2 {[%clk 0:12:01]}  Bb7 {[%clk 0:12:09]}
4. O-O {[%clk 0:12:02]}  e6 {[%clk 0:12:08]} 5. d3 {[%clk 0:12:03]}  Nf6 {[%clk 0:12:09]} 6. Nbd2 {[%clk 0:12:01]}  Nbd7 {[%clk 0:12:11]}
7. c4 {[%clk 0:10:35]}  c5 {[%clk 0:11:46]} 8. cxd5 {[%clk 0:10:34]}  Nxd5 {[%clk 0:11:47]} 9. a3 {[%clk 0:09:58]}  Be7 {[%clk 0:11:43]}
10. e4 {[%clk 0:09:55]}  N5f6 {[%clk 0:11:17]} 11. b3 {[%clk 0:09:19]}  O-O {[%clk 0:11:15]} 12. Bb2 {[%clk 0:09:21]}  b5 {[%clk 0:11:08]}
13. Qe2 {[%clk 0:09:11]}  Qb6 {[%clk 0:11:04]} 14. h4 {[%clk 0:08:16]}  Rfd8 {[%clk 0:10:49]} 15. Bh3 {[%clk 0:08:03]}  Rac8 {[%clk 0:09:56]}
16. g4 {[%clk 0:07:47]}  Nf8 {[%clk 0:09:36]} 17. Ne5 {[%clk 0:07:20]}  N6d7 {[%clk 0:09:14]} 18. g5 {[%clk 0:06:51]}  Nxe5 {[%clk 0:08:56]}
19. Bxe5 {[%clk 0:06:52]}  Bd6 {[%clk 0:08:33]} 20. Bc3 {[%clk 0:04:53]}  Ng6 {[%clk 0:08:23]} 21. h5 {[%clk 0:04:44]}  Nf4 {[%clk 0:08:12]}
22. Qg4 {[%clk 0:04:46]}  Bb8 {[%clk 0:07:28]} 23. g6 {[%clk 0:04:37]}  fxg6 {[%clk 0:06:33]} 24. hxg6 {[%clk 0:04:38]}  h5 {[%clk 0:06:35]}
25. Qh4 {[%clk 0:04:28]}  Rxd3 {[%clk 0:06:20]} 26. Qe7 {[%clk 0:03:50]}  Nxh3+ {[%clk 0:05:46]} 27. Kh1 {[%clk 0:03:52]}  Rxc3 {[%clk 0:05:48]}
28. f4 {[%clk 0:03:47]}  Rf8 {[%clk 0:05:01]} 0-1